bitfinex/quotes_BTCUSD_20230103
["timestamp","ask_amount","ask_price","bid_price","bid_amount"]
[1672741786305,1.30846679,16764.0,16763.0,0.05579004]
[1672741786519,1.92277579,16764.0,16763.0,0.05579004]
[1672741787016,1.91277328,16764.0,16763.0,0.05579004]
[1672741788054,2.52708228,16764.0,16763.0,0.05579004]
[1672741789868,2.52708228,16764.0,16763.0,0.05572548]
[1672741790578,1.92277579,16764.0,16763.0,0.05572548]
[1672741790827,1.91275751,16764.0,16763.0,0.05572548]
[1672741791318,1.92277579,16764.0,16763.0,0.05572548]
[1672741792327,1.30846679,16764.0,16763.0,0.05572548]
[1672741793818,1.91270608,16764.0,16763.0,0.05572548]
[1672741794043,1.30846679,16764.0,16763.0,0.05572548]
[1672741795290,1.30846679,16764.0,16763.0,0.05616325]
[1672741795539,1.30846679,16764.0,16763.0,0.05572548]
[1672741796064,1.91269404,16764.0,16763.0,0.05572548]
[1672741796330,2.52700304,16764.0,16763.0,0.05572548]
[1672741796863,1.92277579,16764.0,16763.0,0.05572548]
[1672741797849,2.51929179,16764.0,16763.0,0.05572548]
[1672741798344,1.92277579,16764.0,16763.0,0.05572548]
[1672741802142,1.91258152,16764.0,16763.0,0.05572548]
[1672741805288,2.52689052,16764.0,16763.0,0.05572548]
[1672741806500,2.5268811,16764.0,16763.0,0.05572548]
[1672741809210,1.9125721,16764.0,16763.0,0.05572548]
[1672741812219,1.91248754,16764.0,16763.0,0.05572548]
[1672741814192,1.90748754,16764.0,16763.0,0.05572548]
[1672741815445,1.30338223,16764.0,16763.0,0.05572548]
[1672741815908,1.90748754,16764.0,16763.0,0.05572548]
[1672741816135,1.30338223,16764.0,16763.0,0.05572548]
[1672741817176,1.90748754,16764.0,16763.0,0.05572548]
[1672741822254,2.52179654,16764.0,16763.0,0.05572548]
[1672741822828,1.91769123,16764.0,16763.0,0.05572548]
[1672741823248,1.30338223,16764.0,16763.0,0.05572548]
[1672741823760,1.90743689,16764.0,16763.0,0.05572548]
[1672741824035,2.52174589,16764.0,16763.0,0.05572548]
[1672741824501,1.90743689,16764.0,16763.0,0.05572548]
[1672741824996,1.9074626,16764.0,16763.0,0.05572548]
[1672741826874,1.30338223,16764.0,16763.0,0.05572548]
[1672741827949,1.90740575,16764.0,16763.0,0.05572548]
[1672741828198,1.30338223,16764.0,16763.0,0.05572548]
[1672741828447,1.90740417,16764.0,16763.0,0.05572548]
[1672741829252,1.30338223,16764.0,16763.0,0.05572548]
[1672741829692,1.9073905,16764.0,16763.0,0.05572548]
[1672741829968,1.90738907,16764.0,16763.0,0.05572548]
[1672741835729,1.30338223,16764.0,16763.0,0.05572548]
[1672741835979,1.90738065,16764.0,16763.0,0.05572548]
[1672741836736,1.90738065,16764.0,16763.0,0.05565831]
[1672741836992,2.52168965,16764.0,16763.0,0.05565831]
[1672741837616,1.90738359,16764.0,16763.0,0.05565831]
[1672741845226,1.90738359,16764.0,16763.0,0.66996731]
[1672741848005,1.30338223,16764.0,16763.0,0.66996731]
[1672741848288,1.30338223,16764.0,16763.0,1.39114165]
[1672741848501,1.90738359,16764.0,16763.0,1.39114165]
[1672741848756,1.30338223,16764.0,16763.0,1.39114165]
[1672741849571,1.90738359,16764.0,16763.0,1.39114165]
[1672741850050,1.30338223,16764.0,16763.0,1.39114165]
[1672741850559,1.90738359,16764.0,16763.0,1.39114165]
[1672741851065,1.30338223,16764.0,16763.0,1.39114165]
[1672741854084,1.30338223,16764.0,16763.0,0.77683265]
[1672741854673,1.30338223,16764.0,16763.0,1.39114165]
[1672741855096,1.30338223,16764.0,16763.0,0.66996731]
[1672741855875,1.30338223,16764.0,16763.0,1.39064222]
[1672741858025,1.84032122,16764.0,16763.0,1.39055519]
[1672741858282,1.84026147,16764.0,16763.0,0.77624619]
[1672741858543,1.84026147,16764.0,16763.0,0.05557128]
[1672741858798,1.30338223,16764.0,16763.0,0.05557128]
[1672741859295,1.30338223,16764.0,16763.0,1.39055498]
[1672741859542,1.84027245,16764.0,16763.0,1.39055498]
[1672741861360,1.84027245,16764.0,16763.0,0.77624598]
[1672741861891,1.84027245,16764.0,16763.0,0.05557128]
[1672741863457,1.84019488,16764.0,16763.0,0.05557128]
[1672741868174,1.91769123,16764.0,16763.0,0.05557128]
[1672741868452,1.30338223,16764.0,16763.0,0.05557128]
[1672741868704,1.84016948,16764.0,16763.0,0.05557128]
[1672741869487,1.30338223,16764.0,16763.0,0.05557128]
[1672741870262,1.30338223,16764.0,16763.0,0.05475006]
[1672741874401,1.90738359,16764.0,16763.0,0.05475006]
[1672741875603,2.52169259,16764.0,16763.0,0.05475006]
[1672741886154,1.90738359,16764.0,16763.0,0.05475006]
[1672741889590,1.90722789,16764.0,16763.0,0.05475006]
[1672741897581,2.52153689,16764.0,16763.0,0.05475006]
[1672741897824,1.90722789,16764.0,16763.0,0.05475006]
[1672741899596,3.11805289,16764.0,16763.0,0.05475006]
[1672741900813,2.52153689,16764.0,16763.0,0.05475006]
[1672741901846,3.11805289,16764.0,16763.0,0.05475006]
[1672741902833,2.52153689,16764.0,16763.0,0.05475006]
[1672741903980,2.52153689,16764.0,16763.0,0.05084646]
[1672741908816,1.91753553,16764.0,16763.0,0.05084646]
[1672741909078,1.30322653,16764.0,16763.0,0.05084646]
[1672741909591,1.91753553,16764.0,16763.0,0.05084646]
[1672741910319,3.08769531,16764.0,16763.0,0.05084646]
[1672741912046,2.49117931,16764.0,16763.0,0.05084646]
[1672741912807,1.87687031,16764.0,16763.0,0.05084646]
[1672741913809,2.49117931,16764.0,16763.0,0.05084646]
[1672741914575,3.08769531,16764.0,16763.0,0.05084646]
[1672741915398,3.08269531,16764.0,16763.0,0.05084646]
[1672741915631,3.08269531,16764.0,16761.0,1.59838486]
[1672741915891,0.60421185,16763.0,16761.0,1.59838486]
[1672741916155,1.210896,16762.0,16761.0,1.59838486]
[1672741916408,1.19913739,16762.0,16761.0,0.96438486]
[1672741916686,0.62027239,16762.0,16761.0,0.96438486]
[1672741916940,1.22448424,16762.0,16761.0,0.06501052]
[1672741917194,3.01424524,16762.0,16761.0,0.07001052]
[1672741917448,3.58340822,16762.0,16761.0,0.07001052]
[1672741917721,3.95382707,16762.0,16761.0,0.07001052]
[1672741917984,3.59621485,16762.0,16761.0,0.06501052]
[1672741918286,3.59621485,16762.0,16761.0,0.06901052]
[1672741918287,3.30921485,16762.0,16761.0,0.06901052]
[1672741918498,3.29121485,16762.0,16761.0,0.06501052]
[1672741918756,4.44369553,16762.0,16761.0,0.06501052]
[1672741919004,3.59121485,16762.0,16761.0,0.06501052]
[1672741919252,3.24901485,16762.0,16761.0,0.06501052]
[1672741928664,3.85193175,16762.0,16761.0,0.06501052]
[1672741928923,3.24901485,16762.0,16761.0,0.06501052]
[1672741929744,3.85190715,16762.0,16761.0,0.06501052]
[1672741929942,3.24901485,16762.0,16761.0,0.06501052]
[1672741930195,3.85181561,16762.0,16761.0,0.06501052]
[1672741930457,3.24901485,16762.0,16761.0,0.06501052]
[1672741930741,4.56954022,16762.0,16761.0,0.06501052]
[1672741931055,3.56696157,16762.0,16761.0,0.06501052]
[1672741931736,3.26696157,16762.0,16761.0,0.06501052]
[1672741932234,3.56696157,16762.0,16761.0,0.06501052]
[1672741932987,4.28425447,16762.0,16761.0,0.06501052]
[1672741933228,3.54901485,16762.0,16761.0,0.06501052]
[1672741935099,3.37151485,16762.0,16761.0,0.06501052]
[1672741935739,3.07151485,16762.0,16761.0,0.06501052]
[1672741936523,3.37151485,16762.0,16761.0,0.06501052]
[1672741936753,4.08893946,16762.0,16761.0,0.06501052]
[1672741936986,3.38946157,16762.0,16761.0,0.06501052]
[1672741937720,3.07151485,16762.0,16761.0,0.06501052]
[1672741939028,3.37151485,16762.0,16761.0,0.06501052]
[1672741939282,3.37151485,16762.0,16761.0,0.06491279]
[1672741939789,3.07151485,16762.0,16761.0,0.06491279]
[1672741941033,3.37151485,16762.0,16761.0,0.06491279]
[1672741941377,4.08907587,16762.0,16761.0,0.06491279]
[1672741941553,4.08907587,16762.0,16761.0,0.06483124]
[1672741942589,3.37151485,16762.0,16761.0,0.06483124]
[1672741942816,4.08865519,16762.0,16761.0,0.06483124]
[1672741943071,3.37151485,16762.0,16761.0,0.06483124]
[1672741944097,4.08846898,16762.0,16761.0,0.06483124]
[1672741945633,3.84001985,16762.0,16761.0,0.06483124]
[1672741945918,3.37151485,16762.0,16761.0,0.06483124]
[1672741947400,3.07151485,16762.0,16761.0,0.06483124]
[1672741950442,3.37151485,16762.0,16761.0,0.06483124]
[1672741950951,3.07151485,16762.0,16761.0,0.06483124]
[1672741951197,2.46220585,16762.0,16761.0,0.06483124]
[1672741961912,2.46220585,16762.0,16761.0,0.06476326]
[1672741981380,2.46220585,16762.0,16761.0,0.0640157]
[1672741984662,3.07343085,16762.0,16761.0,0.0640157]
[1672741995676,2.46220585,16762.0,16761.0,0.0640157]
[1672741996682,2.43720585,16762.0,16761.0,0.0640157]
[1672742001925,2.41220585,16762.0,16761.0,0.0140157]
[1672742020143,3.02343085,16762.0,16761.0,0.0140157]
[1672742023684,3.02343085,16762.0,16761.0,0.01394742]
[1672742024736,2.41220585,16762.0,16761.0,0.01394742]
[1672742031602,2.41220585,16762.0,16761.0,0.05566241]
[1672742042007,3.02343085,16762.0,16761.0,0.05566241]
[1672742042544,2.41220585,16762.0,16761.0,0.05566241]
[1672742042783,3.02343085,16762.0,16761.0,0.05566241]
[1672742048489,3.02343085,16762.0,16761.0,0.05557739]
[1672742049246,2.41220585,16762.0,16761.0,0.05557739]
[1672742049513,3.02343085,16762.0,16761.0,0.05557739]
[1672742069286,1.89022439,16762.0,16761.0,0.05557739]
[1672742069788,2.50144939,16762.0,16761.0,0.05557739]
[1672742072081,1.89022439,16762.0,16761.0,0.05557739]
[1672742072575,1.89022439,16762.0,16761.0,0.23377739]
[1672742072576,2.49449567,16762.0,16761.0,0.23377739]
[1672742072821,2.49449567,16762.0,16761.0,0.23368935]
[1672742082865,2.49449567,16762.0,16761.0,0.84823435]
[1672742083115,2.49449567,16762.0,16761.0,1.40841146]
[1672742083362,2.49449567,16762.0,16761.0,0.79386646]
[1672742083875,1.89022439,16762.0,16761.0,0.79386646]
[1672742084416,1.89022439,16762.0,16761.0,0.23368935]
[1672742084657,2.49449567,16762.0,16761.0,0.23368935]
[1672742085660,1.89022439,16762.0,16761.0,0.23368935]
[1672742089001,2.49449567,16762.0,16761.0,0.23368935]
[1672742093198,2.49449567,16762.0,16761.0,0.23358704]
[1672742095752,2.49402143,16762.0,16761.0,0.23358704]
[1672742096792,1.193174,16762.0,16761.0,0.23358704]
[1672742097055,1.79572724,16762.0,16761.0,0.23358704]
[1672742098380,1.79572724,16762.0,16761.0,0.72179829]
[1672742099123,1.79572724,16762.0,16761.0,0.54359829]
[1672742099354,2.40695224,16762.0,16761.0,0.54359829]
[1672742101643,2.40695224,16762.0,16761.0,0.54349416]
[1672742105416,2.40695224,16762.0,16761.0,0.05528291]
[1672742106957,2.71545224,16762.0,16761.0,0.05528291]
[1672742107954,2.41545224,16762.0,16761.0,0.05528291]
[1672742110814,2.91545224,16762.0,16761.0,0.05410252]
[1672742111327,2.41545224,16762.0,16761.0,0.05410252]
[1672742111576,3.13099599,16762.0,16761.0,0.05410252]
[1672742113094,3.43099599,16762.0,16761.0,0.05410252]
[1672742114590,3.44894271,16762.0,16761.0,0.05410252]
[1672742116786,3.13099599,16762.0,16761.0,0.05410252]
[1672742124024,3.43099599,16762.0,16761.0,0.05410252]
[1672742124314,4.35711631,16762.0,16761.0,0.05410252]
[1672742124569,4.16236847,16762.0,16761.0,0.05410252]
[1672742124821,3.43099599,16762.0,16761.0,0.05410252]
[1672742125291,3.13099599,16762.0,16761.0,0.05410252]
[1672742126319,3.43099599,16762.0,16761.0,0.05410252]
[1672742126560,3.13099599,16762.0,16761.0,0.05410252]
[1672742130443,0.6514289,16761.0,16759.0,1.25715086]
[1672742130696,1.80293259,16760.0,16759.0,0.68615369]
[1672742130950,2.41415759,16760.0,16759.0,0.1782]
[1672742131474,1.80293259,16760.0,16759.0,0.1782]
[1672742131728,1.80293259,16760.0,16759.0,0.1872]
[1672742132226,1.80293259,16760.0,16759.0,0.1782]
[1672742132488,1.80293259,16760.0,16759.0,0.1842]
[1672742132489,1.82093259,16760.0,16759.0,0.1842]
[1672742148279,1.82093259,16760.0,16759.0,0.1841334]
[1672742156628,2.41759059,16760.0,16759.0,0.1841334]
[1672742156873,3.02881559,16760.0,16759.0,0.1841334]
[1672742157339,2.42516524,16760.0,16759.0,0.1841334]
[1672742170038,2.42516524,16760.0,16759.0,0.18407117]
[1672742173993,1.81394024,16760.0,16759.0,0.18407117]
[1672742174239,2.42516524,16760.0,16759.0,0.18407117]
[1672742175502,1.81394024,16760.0,16759.0,0.18407117]
[1672742177272,2.42516524,16760.0,16759.0,0.18407117]
[1672742178810,1.81394024,16760.0,16759.0,0.18407117]
[1672742179577,2.41784895,16760.0,16759.0,0.48825675]
[1672742180138,3.02907395,16760.0,16759.0,0.48825675]
[1672742180638,2.42516524,16760.0,16759.0,0.48825675]
[1672742180847,1.81394024,16760.0,16759.0,0.48825675]
[1672742182057,2.41787177,16760.0,16759.0,0.48825675]
[1672742184036,1.81394024,16760.0,16759.0,0.48825675]
[1672742184291,2.41787295,16760.0,16759.0,0.48825675]
[1672742184549,1.81394024,16760.0,16759.0,0.48825675]
[1672742184792,2.41789574,16760.0,16759.0,0.48825675]
[1672742185052,1.81394024,16760.0,16759.0,0.48825675]
[1672742187017,1.81394024,16760.0,16759.0,0.18407117]
[1672742194650,1.81394024,16760.0,16759.0,0.1840076]
[1672742194906,2.42516524,16760.0,16759.0,0.1840076]
[1672742196181,1.81394024,16760.0,16759.0,0.1840076]
[1672742199822,1.81394024,16760.0,16759.0,0.56681154]
[1672742203086,2.41806504,16760.0,16759.0,0.56681154]
[1672742203346,1.81394024,16760.0,16759.0,0.56681154]
[1672742203831,2.418063,16760.0,16759.0,0.56681154]
[1672742206335,1.821405,16760.0,16759.0,1.75018312]
[1672742207078,1.21728224,16760.0,16759.0,1.75018312]
[1672742210796,0.62062424,16760.0,16759.0,1.75018312]
[1672742211003,1.15734604,16760.0,16759.0,1.75018312]
[1672742211239,1.15734604,16760.0,16759.0,1.7491705]
[1672742217530,1.15734604,16760.0,16759.0,0.56579892]
[1672742217817,1.75400404,16760.0,16759.0,0.56579892]
[1672742218089,1.21728224,16760.0,16759.0,0.56579892]
[1672742218359,1.75368898,16760.0,16759.0,0.56579892]
[1672742218622,1.21728224,16760.0,16759.0,0.56579892]
[1672742223859,1.821405,16760.0,16759.0,0.56579892]
[1672742224084,1.21728224,16760.0,16759.0,0.56579892]
[1672742225660,1.821405,16760.0,16759.0,0.56579892]
[1672742228854,1.21728224,16760.0,16759.0,0.56579892]
[1672742229112,1.821405,16760.0,16759.0,0.56579892]
[1672742229362,1.21728224,16760.0,16759.0,0.56579892]
[1672742229855,1.21728224,16760.0,16759.0,1.13369223]
[1672742230116,1.75372477,16760.0,16759.0,0.56579892]
[1672742230371,1.21728224,16760.0,16759.0,0.56579892]
[1672742231626,1.75372539,16760.0,16759.0,0.56579892]
[1672742231885,1.21728224,16760.0,16759.0,0.56579892]
[1672742234859,1.75379025,16760.0,16759.0,0.56570833]
[1672742236382,1.21728224,16760.0,16759.0,0.56570833]
[1672742237155,1.75383402,16760.0,16759.0,0.56570833]
[1672742237417,1.21728224,16760.0,16759.0,0.56570833]
[1672742237681,1.75384256,16760.0,16759.0,0.56570833]
[1672742237902,1.21728224,16760.0,16759.0,0.56570833]
[1672742238687,1.75387654,16760.0,16759.0,0.56570833]
[1672742238938,1.75387654,16760.0,16759.0,1.14680345]
[1672742239159,1.75387654,16760.0,16759.0,0.56570833]
[1672742240748,1.21728224,16760.0,16759.0,0.56570833]
[1672742241259,1.7539121,16760.0,16759.0,0.56570833]
[1672742241522,1.21728224,16760.0,16759.0,0.56570833]
[1672742244553,1.821405,16760.0,16759.0,0.56570833]
[1672742245068,1.21728224,16760.0,16759.0,0.56570833]
[1672742245317,1.821405,16760.0,16759.0,0.56570833]
[1672742245573,1.21728224,16760.0,16759.0,0.56570833]
[1672742246325,1.821405,16760.0,16759.0,0.56570833]
[1672742246834,1.21728224,16760.0,16759.0,0.56570833]
[1672742248841,1.821405,16760.0,16759.0,0.56570833]
[1672742250839,1.81132885,16760.0,16759.0,0.56570833]
[1672742252083,1.20720609,16760.0,16759.0,0.38880394]
[1672742261104,1.81132885,16760.0,16759.0,0.38880394]
[1672742264966,2.42255385,16760.0,16759.0,0.38880394]
[1672742271770,2.42255385,16760.0,16759.0,0.38870731]
[1672742272256,1.81132885,16760.0,16759.0,0.38870731]
[1672742272754,1.81132885,16760.0,16759.0,0.00590337]
[1672742273058,2.40798685,16760.0,16759.0,0.00590337]
[1672742276311,2.40798685,16760.0,16759.0,0.46647937]
[1672742287406,2.40798685,16760.0,16759.0,0.45647937]
[1672742288927,1.81132885,16760.0,16759.0,0.45647937]
[1672742289182,1.81132885,16760.0,16759.0,1.21486679]
[1672742289183,1.74423077,16760.0,16759.0,1.21486679]
[1672742289445,1.74423077,16760.0,16759.0,1.82941179]
[1672742290731,1.74423077,16760.0,16759.0,1.82978429]
[1672742290986,1.74423077,16760.0,16759.0,1.82978376]
[1672742291244,1.74414653,16760.0,16759.0,1.2474783]
[1672742291788,1.74414653,16760.0,16759.0,1.82908125]
[1672742297009,0.02396624,16760.0,16759.0,1.82908125]
[1672742298329,0.47123971,16760.0,16759.0,1.82908125]
[1672742298838,0.47123971,16760.0,16759.0,2.42577525]
[1672742299347,0.82898166,16760.0,16759.0,2.42577525]
[1672742300104,0.82898166,16760.0,16759.0,3.12577525]
[1672742300347,0.38170819,16760.0,16759.0,3.88832513]
[1672742300603,0.65001443,16760.0,16759.0,4.06652513]
[1672742300846,0.82898166,16760.0,16759.0,4.06652513]
[1672742302111,0.81098166,16760.0,16759.0,4.06652513]
[1672742302363,0.81098166,16760.0,16759.0,4.09452513]
[1672742302623,1.07922321,16760.0,16759.0,4.09452513]
[1672742302881,0.63194974,16760.0,16759.0,4.09452513]
[1672742306520,0.81070939,16760.0,16759.0,4.09452513]
[1672742306779,0.45296744,16760.0,16759.0,4.09452513]
[1672742308004,0.18472589,16760.0,16759.0,4.09452513]
[1672742309263,0.45296744,16760.0,16759.0,4.09452513]
[1672742309506,0.18472589,16760.0,16759.0,4.09452513]
[1672742310754,0.00596624,16760.0,16759.0,4.78648997]
[1672742311003,0.00596624,16760.0,16759.0,4.54642995]
[1672742311776,0.00596624,16760.0,16759.0,4.60881333]
[1672742312017,0.00596624,16760.0,16759.0,4.58081333]
[1672742312548,0.00596624,16760.0,16759.0,4.72181333]
[1672742312802,0.00596624,16760.0,16759.0,4.58081333]
[1672742313037,0.00596624,16760.0,16759.0,4.72081333]
[1672742313529,0.00596624,16760.0,16759.0,4.35842995]
[1672742313790,0.00596624,16760.0,16759.0,4.97484097]
[1672742314309,0.00596624,16760.0,16759.0,4.91091182]
[1672742314828,0.00596624,16760.0,16759.0,4.35842995]
[1672742315084,0.00596624,16760.0,16759.0,5.02020507]
[1672742315574,0.00596624,16760.0,16759.0,4.35842995]
[1672742316344,0.00596624,16760.0,16759.0,4.65842995]
[1672742317339,0.00596624,16760.0,16759.0,5.33447778]
[1672742317585,0.00596624,16760.0,16759.0,4.35842995]
[1672742318865,0.00596624,16760.0,16759.0,4.65842995]
[1672742320111,0.00596624,16760.0,16759.0,3.95842995]
[1672742320355,0.00596624,16760.0,16759.0,4.65842995]
[1672742320617,0.00596624,16760.0,16759.0,5.29121396]
[1672742320849,0.00596624,16760.0,16759.0,5.30993381]
[1672742321340,0.00596624,16760.0,16759.0,5.00993381]
[1672742321602,0.00596624,16760.0,16759.0,4.35842995]
[1672742322128,0.00596624,16760.0,16759.0,4.90467955]
[1672742323123,0.00596624,16760.0,16759.0,4.35842995]
[1672742323383,0.00596624,16760.0,16759.0,4.65842995]
[1672742324686,0.00596624,16760.0,16759.0,5.21472539]
[1672742324966,0.00596624,16760.0,16759.0,4.91472539]
[1672742326298,0.00596624,16760.0,16759.0,4.21472539]
[1672742327263,0.00596624,16760.0,16759.0,4.91472539]
[1672742330827,0.00596624,16760.0,16759.0,4.35842995]
[1672742331080,0.00596624,16760.0,16759.0,4.99899404]
[1672742331585,0.00596624,16760.0,16759.0,4.35842995]
[1672742332366,0.00596624,16760.0,16759.0,4.99772541]
[1672742332901,0.18472589,16760.0,16759.0,4.99772541]
[1672742333125,0.00596624,16760.0,16759.0,4.29772541]
[1672742333603,0.18472589,16760.0,16759.0,4.29772541]
[1672742334061,0.18472589,16760.0,16759.0,4.99772541]
[1672742334322,0.00596624,16760.0,16759.0,4.99772541]
[1672742334542,0.18472589,16760.0,16759.0,4.99772541]
[1672742336016,0.18472589,16760.0,16759.0,4.64192541]
[1672742338817,0.18472589,16760.0,16759.0,4.30262995]
[1672742339096,0.18472589,16760.0,16759.0,4.97512831]
[1672742339842,0.18472589,16760.0,16759.0,4.67512831]
[1672742342116,0.18472589,16760.0,16759.0,4.00262995]
[1672742342364,0.18472589,16760.0,16759.0,4.96623492]
[1672742343643,0.18472589,16760.0,16759.0,4.30262995]
[1672742343875,0.18472589,16760.0,16759.0,4.89701171]
[1672742344906,0.18472589,16760.0,16759.0,4.19701171]
[1672742345790,0.18472589,16760.0,16759.0,4.89701171]
[1672742349548,0.45296744,16760.0,16759.0,4.89701171]
[1672742349804,0.18472589,16760.0,16759.0,4.89701171]
[1672742350046,0.18472589,16760.0,16759.0,5.07604479]
[1672742351911,0.18472589,16760.0,16759.0,4.37604479]
[1672742352162,0.18472589,16760.0,16759.0,3.78166303]
[1672742352412,0.45296744,16760.0,16759.0,4.18622471]
[1672742352910,0.45296744,16760.0,16759.0,4.88622471]
[1672742353408,0.18472589,16760.0,16759.0,4.88622471]
[1672742354451,0.18472589,16760.0,16759.0,4.30262995]
[1672742354707,0.18472589,16760.0,16759.0,4.48166303]
[1672742354966,0.18472589,16760.0,16759.0,5.11052962]
[1672742355468,0.18472589,16760.0,16759.0,4.93149654]
[1672742355966,0.18472589,16760.0,16759.0,5.11052962]
[1672742356208,0.18472589,16760.0,16759.0,4.48166303]
[1672742356725,0.18472589,16760.0,16759.0,5.13434954]
[1672742357732,0.18472589,16760.0,16759.0,4.95531646]
[1672742358438,0.45296744,16760.0,16759.0,4.95531646]
[1672742358907,0.45296744,16760.0,16759.0,4.65531646]
[1672742359154,0.45296744,16760.0,16759.0,4.83351646]
[1672742360449,0.45296744,16760.0,16759.0,5.13351646]
[1672742360662,0.45296744,16760.0,16759.0,4.83351646]
[1672742362431,0.45296744,16760.0,16759.0,5.13351646]
[1672742362703,0.45296744,16760.0,16759.0,4.83351646]
[1672742362956,0.45296744,16760.0,16759.0,5.13351646]
[1672742363462,0.45296744,16760.0,16759.0,4.83351646]
[1672742364938,0.45296744,16760.0,16759.0,5.13351646]
[1672742365650,0.45296744,16760.0,16759.0,4.83351646]
[1672742369033,0.45296744,16760.0,16759.0,4.18082995]
[1672742369298,0.18472589,16760.0,16759.0,4.48082995]
[1672742369558,0.18472589,16760.0,16759.0,4.65986303]
[1672742370368,0.00596624,16760.0,16759.0,4.65986303]
[1672742376806,0.00596624,16760.0,16759.0,5.11084595]
[1672742377063,0.00596624,16760.0,16759.0,4.22841266]
[1672742377313,0.00596624,16760.0,16759.0,3.95986303]
[1672742377817,0.00596624,16760.0,16759.0,4.65986303]
[1672742378628,0.00596624,16760.0,16759.0,4.95820303]
[1672742380173,0.00596624,16760.0,16759.0,4.65986303]
[1672742381353,0.18472589,16760.0,16759.0,5.11473322]
[1672742381621,0.18472589,16760.0,16759.0,3.86628495]
[1672742382404,0.18472589,16760.0,16759.0,4.54575755]
[1672742382901,0.18472589,16760.0,16759.0,3.86628495]
[1672742383980,0.18472589,16760.0,16759.0,4.46606713]
[1672742384999,0.18472589,16760.0,16759.0,3.8939279]
[1672742386736,0.18472589,16760.0,16759.0,4.41726561]
[1672742387552,0.18472589,16760.0,16759.0,3.1939279]
[1672742388482,0.18472589,16760.0,16759.0,3.8939279]
[1672742390272,0.00596624,16760.0,16759.0,4.43257879]
[1672742390525,0.00596624,16760.0,16759.0,5.05692921]
[1672742391011,0.00596624,16760.0,16759.0,4.68750598]
[1672742391286,0.00596624,16760.0,16759.0,4.5084729]
[1672742391539,0.00596624,16760.0,16759.0,4.68750598]
[1672742392313,0.00596624,16760.0,16759.0,5.32678998]
[1672742393265,0.00596624,16760.0,16759.0,4.68750598]
[1672742395810,0.00596624,16760.0,16759.0,4.95605561]
[1672742396337,0.00596624,16760.0,16759.0,4.50930598]
[1672742396580,0.00596624,16760.0,16759.0,3.89476098]
[1672742396839,0.00596624,16760.0,16759.0,4.50930598]
[1672742397360,0.00596624,16760.0,16759.0,3.89476098]
[1672742397623,0.00596624,16760.0,16759.0,4.49930081]
[1672742397887,0.00596624,16760.0,16759.0,5.11384581]
[1672742398395,0.00596624,16760.0,16759.0,4.50930598]
[1672742398652,0.00596624,16760.0,16759.0,4.50413856]
[1672742399415,0.00596624,16760.0,16759.0,5.11868356]
[1672742399677,0.00596624,16760.0,16759.0,4.50922658]
[1672742399936,0.00596624,16760.0,16759.0,3.89468158]
[1672742400444,0.00596624,16760.0,16759.0,4.37327492]
[1672742400710,0.00596624,16760.0,16759.0,4.50922658]
[1672742400952,0.00596624,16760.0,16759.0,4.5621761]
[1672742401708,0.00596624,16760.0,16759.0,5.1767211]
[1672742402453,0.00596624,16760.0,16759.0,4.50834081]
[1672742402772,0.00596624,16760.0,16759.0,5.07438513]
[1672742404514,0.00596624,16760.0,16759.0,4.99653655]
[1672742405012,0.00596624,16760.0,16759.0,4.07689044]
[1672742405253,0.00596624,16760.0,16759.0,3.94942124]
[1672742405998,0.00596624,16760.0,16759.0,4.64942124]
[1672742406255,0.00596624,16760.0,16759.0,5.26396624]
[1672742407986,0.00596624,16760.0,16759.0,4.99541661]
[1672742408225,0.00596624,16760.0,16759.0,4.38087161]
[1672742408477,0.00596624,16760.0,16759.0,4.20183853]
[1672742408478,0.18472589,16760.0,16759.0,4.20183853]
[1672742408984,0.18472589,16760.0,16759.0,4.38087161]
[1672742409508,0.18472589,16760.0,16759.0,3.89379581]
[1672742409766,0.18472589,16760.0,16759.0,4.50676934]
[1672742410562,0.18472589,16760.0,16759.0,4.32773626]
[1672742411278,0.18472589,16760.0,16759.0,4.50676934]
[1672742411788,0.18472589,16760.0,16759.0,4.36676934]
[1672742412541,0.00596624,16760.0,16759.0,4.36676934]
[1672742412837,0.00596624,16760.0,16759.0,4.50676934]
[1672742414095,0.00596624,16760.0,16759.0,3.80676934]
[1672742415096,0.00596624,16760.0,16759.0,4.50676934]
[1672742415590,0.18472589,16760.0,16759.0,4.50676934]
[1672742416843,0.00596624,16760.0,16759.0,4.50676934]
[1672742420565,0.00596624,16760.0,16759.0,3.89379581]
[1672742420806,0.00596624,16760.0,16759.0,4.47769585]
[1672742421049,0.00596624,16760.0,16759.0,3.77769585]
[1672742421769,0.00596624,16760.0,16759.0,3.19379581]
[1672742422036,0.00596624,16760.0,16759.0,4.42237741]
[1672742422275,0.00596624,16760.0,16759.0,5.03692241]
[1672742424537,0.00596624,16760.0,16759.0,5.35051362]
[1672742425039,0.00596624,16760.0,16759.0,5.08196399]
[1672742426803,0.18472589,16760.0,16759.0,5.08196399]
[1672742427068,0.00596624,16760.0,16759.0,5.08196399]
[1672742427566,0.00596624,16760.0,16759.0,4.77689044]
[1672742427814,0.00596624,16760.0,16759.0,4.50834081]
[1672742428334,0.00596624,16760.0,16759.0,5.65932296]
[1672742428857,0.00596624,16760.0,16759.0,6.16416049]
[1672742429114,0.00596624,16760.0,16759.0,5.65932296]
[1672742429622,0.00596624,16760.0,16759.0,4.95932296]
[1672742429875,0.00596624,16760.0,16759.0,5.65932296]
[1672742430964,0.00596624,16760.0,16759.0,6.26049313]
[1672742431738,0.00596624,16760.0,16759.0,5.65932296]
[1672742432255,0.00596624,16760.0,16759.0,6.22071093]
[1672742432505,0.00596624,16760.0,16759.0,5.65932296]
[1672742433283,0.00596624,16760.0,16759.0,6.19913415]
[1672742434029,0.00596624,16760.0,16759.0,6.1714912]
[1672742434318,0.18472589,16760.0,16759.0,5.02050905]
[1672742434824,0.00596624,16760.0,16759.0,5.28905868]
[1672742435073,0.00596624,16760.0,16759.0,5.02050905]
[1672742435326,0.00596624,16760.0,16759.0,5.28905868]
[1672742435829,0.00596624,16760.0,16759.0,4.58905868]
[1672742436852,0.00596624,16760.0,16759.0,5.63168347]
[1672742438249,0.00596624,16760.0,16759.0,6.21381786]
[1672742439007,0.00596624,16760.0,16759.0,5.63168347]
[1672742439588,0.00596624,16760.0,16759.0,6.13730654]
[1672742439781,0.00596624,16760.0,16759.0,6.26094808]
[1672742440037,0.00596624,16760.0,16759.0,6.61901425]
[1672742440546,0.00596624,16760.0,16759.0,6.26094808]
[1672742442741,0.00596624,16760.0,16759.0,4.93168347]
[1672742443269,0.00596624,16760.0,16759.0,5.47598034]
[1672742443771,0.00596624,16760.0,16759.0,6.17598034]
[1672742444014,0.00596624,16760.0,16759.0,6.17597576]
[1672742444263,0.00596624,16760.0,16759.0,5.63167889]
[1672742445271,0.00596624,16760.0,16759.0,6.26234308]
[1672742446540,0.00596624,16760.0,16759.0,5.63167889]
[1672742447247,0.00596624,16760.0,16759.0,6.1850599]
[1672742448777,0.00596624,16760.0,16759.0,5.63167889]
[1672742449250,0.00596624,16760.0,16759.0,6.18770489]
[1672742450039,0.00596624,16760.0,16759.0,4.93167889]
[1672742450296,0.00596624,16760.0,16759.0,4.95350619]
[1672742450549,0.00596624,16760.0,16759.0,5.56805119]
[1672742450786,0.00596624,16760.0,16759.0,5.63167889]